fUST/lending_fUST_20240713
["ID","MTS","AMOUNT","RATE_DAILY","PERIOD"]
[331941637,1720881040296,-500.0,0.00024657,2]
[331941638,1720881040305,-500.0,0.00024657,2]
[331941639,1720881040314,-500.0,0.00024657,2]
[331941640,1720881040323,-500.0,0.00024657,2]
[331941641,1720881040333,-500.0,0.00024657,2]
[331941642,1720881040342,-500.0,0.00024657,2]
[331941643,1720881040351,-500.0,0.00024657,2]
[331941644,1720881040361,-500.0,0.00024657,2]
[331941645,1720881040370,-500.0,0.00024657,2]
[331941646,1720881040380,-500.0,0.00024657,2]
[331941647,1720881040389,-501.57932443,0.00024657,2]
[331941648,1720881040489,-500.0,0.00024657,2]
[331941649,1720881040500,-500.0,0.00024657,2]
[331941650,1720881040511,-500.0,0.00024657,2]
[331941651,1720881040521,-500.0,0.00024657,2]
[331941652,1720881040530,-500.0,0.00024657,2]
[331941653,1720881040539,-601.2692364,0.00024657,2]
[331941654,1720881040550,-500.0,0.00024657,2]
[331941655,1720881040559,-500.0,0.00024657,2]
[331941656,1720881040568,-500.0,0.00024657,2]
[331941657,1720881040578,-500.0,0.00024657,2]
[331941658,1720881040587,-500.0,0.00024657,2]
[331941659,1720881040596,-505.17686854,0.00024657,2]
[331941660,1720881040615,-500.0,0.00024657,2]
[331941661,1720881040628,-500.0,0.00024657,2]
[331941662,1720881040638,-500.0,0.00024657,2]
[331941663,1720881040649,-500.0,0.00024657,2]
[331941664,1720881040660,-500.0,0.00024657,2]
[331941665,1720881040670,-500.0,0.00024657,2]
[331941666,1720881040679,-336.23432254,0.00024657,2]
[331941667,1720881040689,-500.0,0.00024657,2]
[331941668,1720881040699,-501.89413942,0.00024657,2]
[331941669,1720881040709,-512.48032506,0.00024657,2]
[331941670,1720881040719,-500.0,0.00024657,2]
[331941671,1720881040728,-500.0,0.00024657,2]
[331941672,1720881040738,-500.0,0.00024657,2]
[331941674,1720881040748,-500.0,0.00024657,2]
[331941675,1720881040759,-500.0,0.00024657,2]
[331941676,1720881040770,-500.0,0.00024657,2]
[331941677,1720881040779,-500.0,0.00024657,2]
[331941678,1720881040789,-618.31,0.00024657,2]
[331941679,1720881040799,-500.0,0.00024657,2]
[331941680,1720881040809,-500.0,0.00024657,2]
[331941681,1720881040819,-500.0,0.00024657,2]
[331941682,1720881040828,-500.0,0.00024657,2]
[331941683,1720881040838,-500.0,0.00024657,2]
[331941684,1720881040848,-500.0,0.00024657,2]
[331941685,1720881040858,-500.0,0.00024657,2]
[331941686,1720881040867,-500.0,0.00024657,2]
[331941687,1720881040877,-500.0,0.00024657,2]
[331941689,1720881040887,-500.0,0.00024657,2]
[331941690,1720881040897,-500.0,0.00024657,2]
[331941691,1720881040907,-500.0,0.00024657,2]
[331941692,1720881040917,-500.0,0.00024657,2]
[331941693,1720881040928,-500.0,0.00024657,2]
[331941694,1720881040937,-500.0,0.00024657,2]
[331941695,1720881040947,-500.0,0.00024657,2]
[331941696,1720881040957,-341.65877176,0.00024657,2]
[331941697,1720881040967,-500.0,0.00024657,2]
[331941699,1720881040977,-500.0,0.00024657,2]
[331941700,1720881040987,-500.0,0.00024657,2]
[331941701,1720881040998,-500.0,0.00024657,2]
[331941703,1720881041008,-500.0,0.00024657,2]
[331941704,1720881041018,-500.0,0.00024657,2]
[331941705,1720881041028,-7809.43,0.00024657,2]
[331941706,1720881041038,-500.0,0.00024657,2]
[331941707,1720881041047,-500.0,0.00024657,2]
[331941708,1720881041056,-500.0,0.00024657,2]
[331941709,1720881041067,-500.0,0.00024657,2]
[331941710,1720881041077,-500.0,0.00024657,2]
[331941711,1720881041087,-500.0,0.00024657,2]
[331941712,1720881041097,-500.0,0.00024657,2]
[331941713,1720881041108,-520.22345154,0.00024657,2]
[331941714,1720881041118,-500.0,0.00024657,2]
[331941715,1720881041128,-552.00324419,0.00024657,2]
[331941716,1720881041138,-500.0,0.00024657,2]
[331941717,1720881041148,-428.7529884,0.00024657,2]
[331941718,1720881041158,-511.74475912,0.00024657,2]
[331941719,1720881041168,-500.0,0.00024657,2]
[331941720,1720881041178,-500.0,0.00024657,2]
[331941721,1720881041189,-500.0,0.00024657,2]
[331941722,1720881041198,-500.0,0.00024657,2]
[331941723,1720881041209,-500.0,0.00024657,2]
[331941724,1720881041219,-500.0,0.00024657,2]
[331941725,1720881041229,-500.0,0.00024657,2]
[331941727,1720881041238,-500.0,0.00024657,2]
[331941728,1720881041248,-500.0,0.00024657,2]
[331941731,1720881041260,-500.0,0.00024657,2]
[331941732,1720881041270,-500.0,0.00024657,2]
[331941733,1720881041281,-500.0,0.00024657,2]
[331941734,1720881041291,-521.05740123,0.00024657,2]
[331941735,1720881041300,-500.0,0.00024657,2]
[331941736,1720881041311,-633.58551696,0.00024657,2]
[331941737,1720881041320,-500.0,0.00024657,2]
[331941738,1720881041330,-520.35482301,0.00024657,2]
[331941739,1720881041340,-500.0,0.00024657,2]
[331941740,1720881041350,-500.0,0.00024657,2]
[331941741,1720881041360,-1310.33,0.00024657,2]
[331941742,1720881041369,-500.0,0.00024657,2]
[331941743,1720881041379,-151.0,0.00024657,7]
[331941744,1720881041390,-500.0,0.00024657,2]
[331941745,1720881041400,-500.0,0.00024657,2]
[331941746,1720881041410,-500.0,0.00024657,2]
[331941747,1720881041420,-500.0,0.00024657,2]
[331941748,1720881041430,-500.0,0.00024657,2]
[331941749,1720881041441,-1500.0,0.00024657,2]
[331941750,1720881041453,-500.0,0.00024657,2]
[331941751,1720881041464,-500.0,0.00024657,2]
[331941752,1720881041477,-500.0,0.00024657,2]
[331941753,1720881041487,-500.0,0.00024657,2]
[331941754,1720881041497,-500.0,0.00024657,2]
[331941755,1720881041508,-500.0,0.00024657,2]
[331941756,1720881041519,-500.0,0.00024657,2]
[331941757,1720881041529,-500.0,0.00024657,2]
[331941758,1720881041539,-500.0,0.00024657,2]
[331941759,1720881041551,-500.0,0.00024657,2]
[331941760,1720881041561,-500.0,0.00024657,2]
[331941761,1720881041570,-500.0,0.00024657,2]
[331941762,1720881041580,-500.0,0.00024657,2]
[331941763,1720881041590,-500.0,0.00024657,2]
[331941764,1720881041601,-500.0,0.00024657,2]
[331941765,1720881041612,-500.0,0.00024657,2]
[331941766,1720881041622,-500.0,0.00024657,2]
[331941767,1720881041632,-500.0,0.00024657,2]
[331941768,1720881041642,-500.0,0.00024657,2]
[331941769,1720881041652,-500.0,0.00024657,2]
[331941770,1720881041662,-500.0,0.00024657,2]
[331941771,1720881041671,-500.0,0.00024657,2]
[331941772,1720881041682,-500.83096736,0.00024657,2]
[331941773,1720881041691,-500.0,0.00024657,2]
[331941774,1720881041701,-500.0,0.00024657,2]
[331941775,1720881041710,-500.0,0.00024657,2]
[331941776,1720881041720,-500.0,0.00024657,2]
[331941777,1720881041729,-500.0,0.00024657,2]
[331941778,1720881041739,-500.0,0.00024657,2]
[331941779,1720881041749,-500.0,0.00024657,2]
[331941780,1720881041760,-522.99160165,0.00024657,2]
[331941781,1720881041770,-538.41600805,0.00024657,2]
[331941782,1720881041780,-500.0,0.00024657,2]
[331941783,1720881041789,-500.0,0.00024657,2]
[331941784,1720881041799,-500.0,0.00024657,2]
[331941785,1720881041808,-500.0,0.00024657,2]
[331941786,1720881041818,-595.53,0.00024657,2]
[331941787,1720881041827,-500.0,0.00024657,2]
[331941788,1720881041837,-500.0,0.00024657,2]
[331941789,1720881041846,-500.0,0.00024657,2]
[331941790,1720881041856,-500.0,0.00024657,2]
[331941791,1720881041866,-500.19242717,0.00024657,2]
[331941792,1720881041875,-500.0,0.00024657,2]
[331941793,1720881041885,-297.21626423,0.00024657,2]
[331941794,1720881041895,-502.84727923,0.00024657,2]
[331941795,1720881041904,-500.0,0.00024657,2]
[331941796,1720881041914,-500.0,0.00024657,2]
[331941797,1720881041924,-373.81177213,0.00024657,2]
[331941798,1720881041934,-500.0,0.00024657,2]
[331941799,1720881041944,-604.21978585,0.00024657,2]
[331941800,1720881041954,-500.0,0.00024657,2]
[331941801,1720881041964,-500.0,0.00024657,2]
[331941802,1720881041973,-549.45184196,0.00024657,2]
[331941803,1720881041983,-500.0,0.00024657,2]
[331941804,1720881041993,-151.0,0.00024658,2]
[331941805,1720881042003,-27075.20266405,0.000248,2]
[331941806,1720881042013,-878.33419801,0.00024831,3]
[331941807,1720881042023,-302.27461649,0.000249,2]
[331941808,1720881042032,-3764.10986709,0.00024921,3]
[331941809,1720881042043,-500.0,0.0002493,2]
[331941810,1720881042052,-502.07504299,0.00024931,2]
[331941811,1720881042062,-329.77734117,0.00024931,2]
[331941812,1720881042071,-500.0,0.00024931,2]
[331941813,1720881042080,-500.0,0.00024931,2]
[331941814,1720881042090,-500.0,0.00024931,2]
[331941815,1720881042099,-500.0,0.00024931,2]
[331941816,1720881042109,-500.0,0.00024931,2]
[331941817,1720881042119,-500.0,0.00024931,2]
[331941818,1720881042128,-500.0,0.00024931,2]
[331941819,1720881042138,-206.42,0.00024931,2]
[331941820,1720881042148,-500.0,0.00024931,2]
[331941821,1720881042158,-500.0,0.00024931,2]
[331941822,1720881042168,-500.0,0.00024931,2]
[331941823,1720881042179,-500.0,0.00024931,2]
[331941824,1720881042189,-500.0,0.00024931,2]
[331941825,1720881042199,-500.0,0.00024931,2]
[331941826,1720881042209,-500.0,0.00024931,2]
[331941827,1720881042218,-500.0,0.00024931,2]
[331941828,1720881042228,-500.0,0.00024931,2]
[331941829,1720881042237,-500.0,0.00024931,2]
[331941830,1720881042246,-500.0,0.00024931,2]
[331941831,1720881042257,-517.9495124,0.00024931,2]
[331941832,1720881042267,-310.05746639,0.00024931,2]
[331941833,1720881042277,-500.0,0.00024931,2]
[331941834,1720881042288,-523.91,0.00024931,2]
[331941835,1720881042297,-632.9,0.00024931,2]
[331941836,1720881042307,-500.0,0.00024931,2]
[331941837,1720881042317,-500.0,0.00024931,2]
[331941838,1720881042327,-500.0,0.00024931,2]
[331941839,1720881042336,-500.0,0.00024931,2]
[331941840,1720881042346,-500.0,0.00024931,2]
[331941841,1720881042356,-500.0,0.00024931,2]
[331941842,1720881042366,-500.0,0.00024931,2]
[331941843,1720881042376,-500.0,0.00024931,2]
[331941844,1720881042385,-500.0,0.00024931,2]
[331941845,1720881042395,-317.05278161,0.00024931,2]
[331941846,1720881042405,-500.0,0.00024931,2]
[331941847,1720881042415,-500.0,0.00024931,2]
[331941848,1720881042425,-255.9362514,0.00024931,2]
[331941849,1720881042435,-500.0,0.00024931,2]
[331941850,1720881042444,-500.0,0.00024931,2]
[331941851,1720881042454,-500.0,0.00024931,2]
[331941852,1720881042463,-500.0,0.00024931,2]
[331941853,1720881042477,-500.0,0.00024931,2]
[331941854,1720881042486,-500.0,0.00024931,2]
[331941855,1720881042496,-500.0,0.00024931,2]
[331941856,1720881042507,-381.1800309,0.00024931,2]
[331941857,1720881042517,-500.0,0.00024931,2]
[331941858,1720881042526,-500.0,0.00024931,2]
[331941859,1720881042536,-500.0,0.00024931,2]
[331941860,1720881042547,-500.0,0.00024931,2]
[331941861,1720881042557,-500.0,0.00024931,2]
[331941862,1720881042567,-500.0,0.00024931,2]
[331941863,1720881042577,-505.42580894,0.00024931,2]
[331941864,1720881042587,-500.0,0.00024931,2]
[331941865,1720881042596,-500.0,0.00024931,2]
[331941866,1720881042606,-500.0,0.00024931,2]
[331941867,1720881042616,-500.0,0.00024931,2]
[331941868,1720881042625,-500.0,0.00024931,2]
[331941869,1720881042635,-500.0,0.00024931,2]
[331941870,1720881042645,-500.0,0.00024931,2]
[331941871,1720881042654,-500.0,0.00024931,2]
[331941872,1720881042664,-7809.43,0.00024931,2]
[331941873,1720881042674,-500.0,0.00024931,2]
[331941874,1720881042684,-562.51004883,0.00024931,2]
[331941875,1720881042694,-500.0,0.00024931,2]
[331941876,1720881042704,-500.0,0.00024931,2]
[331941877,1720881042714,-500.0,0.00024931,2]
[331941878,1720881042723,-500.0,0.00024931,2]
[331941879,1720881042733,-500.0,0.00024931,2]
[331941880,1720881042743,-500.0,0.00024931,2]
[331941881,1720881042753,-500.0,0.00024931,2]
[331941882,1720881042766,-500.0,0.00024931,2]
[331941883,1720881042776,-500.0,0.00024931,2]
[331941884,1720881042787,-500.0,0.00024931,2]
[331941885,1720881042797,-500.0,0.00024931,2]
[331941886,1720881042817,-1310.33,0.00024931,2]
[331941887,1720881042827,-500.0,0.00024931,2]
[331941888,1720881042838,-500.0,0.00024931,2]
[331941889,1720881042848,-500.0,0.00024931,2]
[331941890,1720881042858,-500.0,0.00024931,2]
[331941891,1720881042870,-500.0,0.00024931,2]
[331941892,1720881042879,-523.45628204,0.00024931,2]
[331941894,1720881042890,-500.0,0.00024931,2]
[331941898,1720881043035,-500.0,0.00024931,2]
[331941900,1720881043046,-500.0,0.00024931,2]
[331941902,1720881043057,-500.0,0.00024931,2]
[331941904,1720881043068,-500.0,0.00024931,2]
[331941905,1720881043078,-500.0,0.00024931,2]
[331941906,1720881043089,-500.0,0.00024931,2]
[331941908,1720881043099,-500.0,0.00024931,2]
[331941909,1720881043108,-208.75112797,0.00024931,2]
[331941910,1720881043117,-252.27704523,0.00024931,2]
[331941911,1720881043126,-500.0,0.00024931,2]
[331941912,1720881043135,-187.00366007,0.00024931,2]
[331941913,1720881043145,-500.0,0.00024931,2]
[331941915,1720881043154,-500.0,0.00024931,2]
[331941917,1720881043164,-500.0,0.00024931,2]
[331941919,1720881043173,-500.0,0.00024931,2]
[331941921,1720881043183,-548.39295008,0.00024931,2]
[331941923,1720881043192,-500.0,0.00024931,2]
[331941924,1720881043202,-500.0,0.00024931,2]
[331941926,1720881043212,-500.0,0.00024931,2]
[331941928,1720881043222,-500.0,0.00024931,2]
[331941930,1720881043233,-500.0,0.00024931,2]
[331941932,1720881043242,-500.0,0.00024931,2]
[331941934,1720881043252,-500.0,0.00024931,2]
[331941936,1720881043264,-8450.10826869,0.00025,60]
[331941938,1720881043274,-302.63665813,0.00025149,2]
[331941939,1720881043284,-500.0,0.00025203,2]
[331941941,1720881043293,-273.96674058,0.00025204,2]
[331941943,1720881043303,-599.44172174,0.00025204,2]
[331941944,1720881043312,-500.0,0.00025204,2]
[331941946,1720881043322,-180.05717902,0.00025204,2]
[331941947,1720881043332,-316.63180992,0.00025205,2]
[331941949,1720881043341,-500.0,0.00025205,2]
[331941951,1720881043351,-503.11619474,0.00025205,2]
[331941953,1720881043361,-615.89652705,0.00025205,2]
[331941955,1720881043371,-500.0,0.00025205,2]
[331941957,1720881043381,-500.0,0.00025205,2]
[331941958,1720881043391,-500.0,0.00025205,2]
[331941960,1720881043401,-500.0,0.00025205,2]
[331941962,1720881043411,-500.0,0.00025205,2]
[331941964,1720881043420,-500.0,0.00025205,2]
[331941966,1720881043430,-500.0,0.00025205,2]
[331941968,1720881043440,-500.0,0.00025205,2]
[331941969,1720881043449,-500.0,0.00025205,2]
[331941971,1720881043459,-507.59354595,0.00025205,2]
[331941973,1720881043471,-500.0,0.00025205,2]
[331941975,1720881043486,-500.0,0.00025205,2]
[331941977,1720881043496,-500.0,0.00025205,2]
[331941980,1720881043509,-210.50193047,0.00025205,2]
[331941982,1720881043519,-500.0,0.00025205,2]
[331941984,1720881043529,-500.0,0.00025205,2]
[331941985,1720881043538,-500.0,0.00025205,2]
[331941988,1720881043548,-500.0,0.00025205,2]
[331941990,1720881043558,-500.0,0.00025205,2]
[331941992,1720881043567,-308.83,0.00025205,2]
[331941994,1720881043577,-7809.43,0.00025205,2]
[331941996,1720881043587,-500.0,0.00025205,2]
[331941998,1720881043597,-500.0,0.00025205,2]
[331942000,1720881043606,-500.0,0.00025205,2]
[331942002,1720881043616,-500.0,0.00025205,2]
[331942004,1720881043625,-500.0,0.00025205,2]
[331942006,1720881043635,-500.0,0.00025205,2]
[331942008,1720881043645,-500.0,0.00025205,2]
[331942010,1720881043654,-500.0,0.00025205,2]
[331942012,1720881043664,-1310.33,0.00025205,2]
[331942014,1720881043673,-500.0,0.00025205,2]
[331942016,1720881043683,-500.0,0.00025205,2]
[331942019,1720881043692,-500.0,0.00025205,2]
[331942022,1720881043701,-339.71798854,0.00025205,2]
[331942025,1720881043711,-500.0,0.00025205,2]
[331942027,1720881043721,-500.0,0.00025205,2]
[331942029,1720881043732,-173.13312301,0.00025205,2]
[331942031,1720881043742,-500.0,0.00025205,2]
[331942033,1720881043752,-500.0,0.00025205,2]
[331942035,1720881043762,-500.0,0.00025205,2]
[331942037,1720881043771,-500.0,0.00025205,2]
[331942039,1720881043782,-500.0,0.00025205,2]
[331942041,1720881043792,-500.0,0.00025205,2]
[331942043,1720881043802,-500.0,0.00025205,2]
[331942045,1720881043811,-500.0,0.00025205,2]
[331942047,1720881043820,-500.0,0.00025205,2]
[331942050,1720881043830,-500.0,0.00025205,2]
[331942052,1720881043840,-531.76915667,0.00025205,2]
[331942054,1720881043849,-500.0,0.00025205,2]
[331942056,1720881043859,-500.0,0.00025205,2]
[331942058,1720881043868,-1456.11365222,0.000253,2]
[331942060,1720881043878,-150.112233,0.000254,7]
[331942062,1720881043887,-3764.10986709,0.00025469,3]
[331942064,1720881043897,-9308.82635334,0.00025479,5]
[331942066,1720881043906,-151.0,0.00025479,2]
[331942068,1720881043915,-500.0,0.00025479,2]
[331942069,1720881043925,-500.0,0.00025479,2]
[331942071,1720881043935,-500.0,0.00025479,2]
[331942073,1720881043944,-500.0,0.00025479,2]
[331942076,1720881043955,-616.01,0.00025479,2]
[331942077,1720881043965,-420.85678218,0.00025479,2]
[331942080,1720881043974,-500.0,0.00025479,2]
[331942081,1720881043984,-500.0,0.00025479,2]
[331942083,1720881043994,-561.53,0.00025479,2]
[331942085,1720881044004,-500.0,0.00025479,2]
[331942087,1720881044014,-500.0,0.00025479,2]
[331942089,1720881044024,-589.13,0.00025479,2]
[331942091,1720881044034,-500.0,0.00025479,2]
[331942093,1720881044044,-500.0,0.00025479,2]
[331942095,1720881044054,-500.0,0.00025479,2]
[331942097,1720881044064,-7809.43,0.00025479,2]
[331942099,1720881044073,-607.70050573,0.00025479,2]
[331942101,1720881044083,-500.0,0.00025479,2]
[331942103,1720881044093,-500.0,0.00025479,2]
[331942105,1720881044102,-1310.33,0.00025479,2]
[331942107,1720881044113,-500.0,0.00025479,2]
[331942109,1720881044123,-500.0,0.00025479,2]
[331942111,1720881044133,-500.0,0.00025479,2]
[331942113,1720881044144,-500.0,0.00025479,2]
[331942115,1720881044154,-500.0,0.00025479,2]
[331942117,1720881044165,-500.0,0.00025479,2]
[331942119,1720881044174,-366.37949132,0.00025479,2]
[331942121,1720881044184,-411.36,0.00025479,2]
[331942124,1720881044193,-500.0,0.00025479,2]
[331942126,1720881044203,-500.0,0.00025479,2]
[331942128,1720881044212,-500.0,0.00025479,2]
[331942130,1720881044222,-500.0,0.0002549,2]
[331942131,1720881044231,-117600.14279937,0.000255,2]
[331942134,1720881044240,-30000.0,0.00025501,2]
[331942136,1720881044250,-3764.10986709,0.00025743,3]
[331942138,1720881044262,-433.74,0.00025752,2]
[331942140,1720881044272,-500.0,0.00025753,2]
[331942142,1720881044282,-507.98739794,0.00025753,2]
[331942144,1720881044291,-500.0,0.00025753,2]
[331942146,1720881044300,-500.0,0.00025753,2]
[331942148,1720881044310,-601.25,0.00025753,2]
[331942150,1720881044320,-500.0,0.00025753,2]
[331942151,1720881044329,-153.32,0.00025753,2]
[331942153,1720881044338,-500.0,0.00025753,2]
[331942155,1720881044348,-500.0,0.00025753,2]
[331942157,1720881044358,-500.0,0.00025753,2]
[331942159,1720881044368,-7809.43,0.00025753,2]
[331942161,1720881044377,-500.0,0.00025753,2]
[331942163,1720881044387,-1310.33,0.00025753,2]
[331942165,1720881044397,-500.0,0.00025753,2]
[331942167,1720881044406,-500.0,0.00025753,2]
[331942169,1720881044416,-516.12653375,0.00025753,2]
[331942171,1720881044425,-500.0,0.00025753,2]
[331942173,1720881044435,-500.0,0.00025753,2]
[331942175,1720881044444,-500.0,0.00025753,2]
[331942177,1720881044453,-500.0,0.00025753,2]
[331942179,1720881044463,-500.0,0.00025753,2]
[331942181,1720881044476,-534.06,0.00025753,2]
[331942183,1720881044485,-201.09696769,0.00025902,2]
[331942185,1720881044494,-154.60575532,0.00025902,2]
[331942187,1720881044505,-154.59445058,0.00025952,2]
[331942189,1720881044516,-152.20405271,0.00025961,2]
[331942191,1720881044526,-167.21919922,0.00025976,2]
[331942193,1720881044535,-152.20405271,0.00026011,2]
[331942195,1720881044552,-152.20405271,0.00026026,2]
[331942197,1720881044561,-350.0,0.00026027,7]
[331942198,1720881044569,-350.0,0.00026027,7]
[331942200,1720881044578,-151.0,0.00026027,2]
[331942202,1720881044587,-198.03,0.00026027,2]
[331942204,1720881044598,-500.0,0.00026027,2]
[331942206,1720881044607,-354.07,0.00026027,2]
[331942208,1720881044616,-235.08,0.00026027,2]
[331942210,1720881044626,-264.09,0.00026027,2]
[331942212,1720881044636,-614.35,0.00026027,2]
[331942214,1720881044645,-500.0,0.00026027,2]
[331942216,1720881044654,-7809.43,0.00026027,2]
[331942218,1720881044665,-421.11346228,0.00026027,2]
[331942220,1720881044674,-1310.33,0.00026027,2]
[331942222,1720881044683,-596.45065235,0.00026027,2]
[331942224,1720881044692,-500.0,0.00026027,2]
[331942226,1720881044702,-500.0,0.00026027,2]
[331942228,1720881044711,-579.09,0.00026027,2]
[331942230,1720881044721,-500.0,0.00026027,2]
[331942232,1720881044731,-500.0,0.00026027,2]
[331942234,1720881044740,-152.20405271,0.00026029,2]
[331942235,1720881044750,-164.82814987,0.00026099,2]
[331942237,1720881044760,-152.20405271,0.00026132,2]
[331942239,1720881044769,-153.79107762,0.00026224,2]
[331942241,1720881044778,-153.29155785,0.0002624,2]
[331942243,1720881044787,-3764.10986709,0.00026291,3]
[331942245,1720881044797,-150.112233,0.000263,6]
[331942247,1720881044806,-500.0,0.00026301,2]
[331942249,1720881044815,-500.0,0.00026301,2]
[331942251,1720881044825,-7809.43,0.00026301,2]
[331942253,1720881044835,-1310.33,0.00026301,2]
[331942255,1720881044844,-204.67,0.00026301,2]
[331942257,1720881044855,-500.0,0.00026301,2]
[331942259,1720881044865,-500.0,0.00026301,2]
[331942261,1720881044874,-500.0,0.00026301,2]
[331942263,1720881044883,-159.57839054,0.0002631,2]
[331942265,1720881044892,-157.95591486,0.00026354,2]
[331942267,1720881044902,-152.20405271,0.0002637,2]
[331942269,1720881044911,-7458.94652043,0.0002649,2]
[331942270,1720881044920,-3000.0,0.000265,2]
[331942272,1720881044929,-3000.0,0.0002651,2]
[331942274,1720881044938,-3000.0,0.0002652,2]
[331942276,1720881044949,-3000.0,0.0002653,2]
[331942278,1720881044958,-3000.0,0.0002654,2]
[331942280,1720881044967,-3000.0,0.0002655,2]
[331942282,1720881044977,-3000.0,0.0002656,2]
[331942284,1720881044988,-3000.0,0.0002657,2]
[331942285,1720881044997,-2121.20832974,0.00026574,2]
[331942287,1720881045007,-332.22,0.00026575,2]
[331942289,1720881045016,-500.0,0.00026575,2]
[331942291,1720881045026,-7809.43,0.00026575,2]
[331942293,1720881045035,-1310.33,0.00026575,2]
[331942295,1720881045045,-500.0,0.00026575,2]
[331942296,1720881045056,-500.0,0.00026575,2]
[331942298,1720881045065,-500.0,0.00026575,2]
[331942300,1720881045075,-3000.0,0.0002658,2]
[331942302,1720881045084,-1412.06004936,0.0002658,3]
[331942304,1720881045241,-1755.87,0.0002658,3]
[331942305,1720881045291,-191.27347695,0.00023968,2]
[331942306,1720881045301,-500.0,0.00024657,2]
[331942307,1720881045310,-500.0,0.00024657,2]
[331942308,1720881045320,-500.0,0.00024657,2]
[331942309,1720881045329,-596.17981773,0.0002658,3]
[331942310,1720881045339,-3000.0,0.0002659,2]
[331942311,1720881045348,-3000.0,0.000266,2]
[331942312,1720881045359,-3000.0,0.0002661,2]
[331942313,1720881045369,-823.0,0.00026619,2]
[331942314,1720881045378,-3000.0,0.0002662,2]
[331942315,1720881045388,-3000.0,0.0002663,2]
[331942316,1720881045397,-3000.0,0.0002664,2]
[331942317,1720881045407,-345.2669,0.00026643,2]
[331942318,1720881045417,-3000.0,0.0002665,2]
[331942319,1720881045426,-153.29155785,0.00026659,2]
[331942320,1720881045435,-3000.0,0.0002666,2]
[331942321,1720881045444,-3000.0,0.0002667,2]
[331942322,1720881045453,-3000.0,0.0002668,2]
[331942323,1720881045464,-3000.0,0.0002669,2]
[331942324,1720881045475,-3000.0,0.000267,2]
[331942325,1720881045485,-418.44841384,0.0002671,2]
[331942328,1720881046010,-1000.0,0.0002671,2]
[331942577,1720881239959,271.71552786,0.00016255,2]
[331942578,1720881247778,550.78353455,0.00016255,2]
[331942579,1720881247808,15.36013454,0.00016255,2]
[331942580,1720881252859,155.22212231,0.00016255,2]
[331942581,1720881256345,2121.20832974,0.00016255,2]
[331942586,1720881323686,415.48966735,0.00017159,2]
[331942590,1720881363907,4720.85227489,0.00016255,2]
[331942594,1720881380646,57244.60275606,0.00016255,2]
[331942614,1720881504080,2121.20832974,0.00016255,2]
[331942619,1720881545983,156.17120317,0.00016255,2]
[331942621,1720881558248,950.29706761,0.00016255,2]
[331942622,1720881562125,14940.99106072,0.00016255,2]
[331942627,1720881597770,567.00490638,0.00016255,2]
[331942629,1720881617427,1636.13004097,0.00016255,2]
[331942634,1720881674557,1029.69240799,0.00016255,2]
[331942636,1720881710257,723.61521419,0.00016255,2]
[331942638,1720881722022,2121.20832974,0.00016255,2]